bitfinex/quotes_SOLUSD_20240917
["timestamp","ask_amount","ask_price","bid_price","bid_amount"]
[1726531724234,7.5712,132.08,132.04,39.27506075]
[1726531724406,7.5712,132.08,132.04,30.0]
[1726531725121,7.5712,132.08,132.03,30.0]
[1726531725318,7.5712,132.08,132.04,9.27509103]
[1726531725626,7.5712,132.08,132.03,30.0]
[1726531725829,7.5712,132.08,132.04,9.2751558]
[1726531726013,7.5712,132.08,132.03,30.0]
[1726531726204,7.5712,132.08,132.04,9.2751555]
[1726531726409,29.3721707,132.1,132.03,15.48432908]
[1726531726629,29.3721707,132.1,132.04,9.27480483]
[1726531726835,29.3721707,132.1,132.03,15.48432908]
[1726531727130,29.3721707,132.1,132.04,9.27485609]
[1726531727446,29.3721707,132.1,132.03,15.48432908]
[1726531727616,29.3721707,132.1,132.04,9.27401456]
[1726531727811,29.3721707,132.1,132.03,15.48432908]
[1726531728018,29.3721707,132.1,132.04,9.27399264]
[1726531728229,29.3721707,132.1,132.03,15.48432908]
[1726531728530,21.8016707,132.1,132.06,15.48432908]
[1726531729304,15.7082707,132.1,132.08,15.48432908]
[1726531731430,0.2584707,132.1,132.08,15.48432908]
[1726531738133,0.2584707,132.1,132.09,15.48432908]
[1726531739454,0.2584707,132.1,132.03,23.776884]
[1726531739644,0.2584707,132.1,132.08,15.48432908]
[1726531740343,0.2584707,132.1,132.09,15.48432908]
[1726531741837,0.2584707,132.1,132.09,45.48432908]
[1726531742924,0.2584707,132.1,132.09,15.48432908]
[1726531743329,0.2584707,132.1,132.09,45.48432908]
[1726531745152,0.2584707,132.1,132.09,65.48432908]
[1726531752462,0.2584707,132.1,132.09,35.48432908]
[1726531755664,0.2584707,132.1,132.09,65.48432908]
[1726531760047,0.2584707,132.14,132.1,20.0]
[1726531760347,0.2584707,132.14,132.13,15.48432908]
[1726531764572,0.2584707,132.14,132.1,30.0]
[1726531764873,0.2584707,132.14,132.11,15.48432908]
[1726531765075,0.2584707,132.14,132.12,30.0]
[1726531765774,0.2584707,132.14,132.11,15.48432908]
[1726531765966,0.2584707,132.14,132.12,15.48432908]
[1726531771284,0.2584707,132.14,132.13,15.48432908]
[1726531771490,0.2584707,132.14,132.12,15.48432908]
[1726531776977,0.2584707,132.14,132.13,30.0]
[1726531778882,0.2584707,132.14,132.1,15.48432908]
[1726531779064,0.2584707,132.14,132.13,15.48432908]
[1726531779254,0.2584707,132.14,132.1,20.0]
[1726531779460,0.2584707,132.14,132.1,35.48432908]
[1726531779995,15.6446,132.13,132.11,30.0]
[1726531781182,15.6446,132.13,132.09,15.48432908]
[1726531781951,15.6446,132.13,132.1,15.48432908]
[1726531782179,15.6446,132.13,132.11,15.48432908]
[1726531782566,0.2584707,132.14,132.11,15.48432908]
[1726531787962,0.2584707,132.14,132.09,9.41573672]
[1726531787963,0.2584707,132.14,132.1,27.04543158]
[1726531788282,0.2584707,132.14,132.11,15.48432908]
[1726531790064,0.2584707,132.14,132.1,27.04634696]
[1726531790278,0.2584707,132.14,132.1,15.48432908]
[1726531790584,0.2584707,132.14,132.1,11.56308755]
[1726531791175,0.2584707,132.14,132.09,15.48432908]
[1726531791483,0.2584707,132.14,132.1,11.56313238]
[1726531791692,0.2584707,132.14,132.09,15.48432908]
[1726531791990,0.2584707,132.14,132.1,11.56313238]
[1726531792170,0.2584707,132.14,132.08,15.48432908]
[1726531792376,0.2584707,132.14,132.09,11.56570099]
[1726531794259,0.2584707,132.14,132.08,15.48432908]
[1726531794454,0.2584707,132.14,132.09,15.48432908]
[1726531795683,23.776884,132.13,132.08,11.57083841]
[1726531796389,23.776884,132.13,132.08,11.57311879]
[1726531796565,23.776884,132.13,132.08,15.48432908]
[1726531797613,7.5711,132.08,132.07,11.56612207]
[1726531797887,31.347984,132.08,132.07,11.56612207]
[1726531800584,7.5724,132.06,132.0,0.2584707]
[1726531800883,7.5724,132.06,132.0,30.2584707]
[1726531801276,7.5724,132.06,132.0,0.2584707]
[1726531801470,23.776884,132.07,132.0,0.2584707]
[1726531801471,22.6897,132.05,132.0,0.2584707]
[1726531802368,15.1167,132.05,132.0,0.2584707]
[1726531802892,15.1167,132.05,132.01,15.48432908]
[1726531804493,15.1167,132.05,132.0,0.2584707]
[1726531804494,15.1167,132.05,132.0,15.74279978]
[1726531805287,15.1167,132.05,132.0,0.2584707]
[1726531806795,15.1167,132.05,132.0,15.74279978]
[1726531808373,15.1167,132.05,132.0,0.2584707]
[1726531810005,22.69,132.05,132.0,0.2584707]
[1726531811676,7.5741,132.03,132.0,0.2584707]
[1726531812380,13.6378,132.04,132.0,0.2584707]
[1726531812786,6.0642,132.04,132.0,0.2584707]
[1726531813999,13.6376,132.04,132.0,0.2584707]
[1726531816403,6.0642,132.04,132.0,0.2584707]
[1726531821682,16.1422,132.08,132.03,15.48432908]
[1726531822802,23.7134,132.08,132.02,15.48432908]
[1726531823698,16.1422,132.08,132.02,15.48432908]
[1726531824491,16.1422,132.08,132.03,15.48432908]
[1726531827509,16.1422,132.08,132.0,0.2584707]
[1726531827715,23.7133,132.08,132.03,15.48432908]
[1726531828602,23.7133,132.08,132.0,30.2584707]
[1726531828603,16.1422,132.08,132.04,15.48432908]
[1726531830310,16.1422,132.08,132.04,45.48432908]
[1726531830498,6.2948,132.1,132.05,15.48432908]
[1726531832291,15.32882368,132.14,132.09,15.48432908]
[1726531832607,0.2584707,132.14,132.11,15.48432908]
[1726531832925,0.2584707,132.14,132.12,1.51367943]
[1726531833292,0.2584707,132.14,132.11,15.48432908]
[1726531835117,0.2584707,132.14,132.12,15.48432908]
[1726531837097,0.2584707,132.14,132.11,15.48432908]
[1726531839723,0.2584707,132.14,132.12,15.48432908]
[1726531843105,0.2584707,132.14,132.13,15.48432908]
[1726531844229,0.2584707,132.14,132.1,6.2082]
[1726531844420,0.2584707,132.14,132.13,15.48432908]
[1726531844928,0.2584707,132.14,132.13,45.48432908]
[1726531846415,0.2584707,132.14,132.13,46.99750731]
[1726531849311,0.2584707,132.18,132.13,90.77439459]
[1726531849515,0.2584707,132.18,132.17,15.48432908]
[1726531850830,0.2584707,132.18,132.17,45.48432908]
[1726531852926,0.2584707,132.18,132.17,15.48432908]
[1726531855817,0.2584707,132.18,132.17,45.48432908]
[1726531860626,0.2584707,132.18,132.17,15.48432908]
[1726531863138,0.2584707,132.18,132.13,23.033057]
[1726531863317,0.2584707,132.18,132.17,15.48432908]
[1726531864335,0.2584707,132.18,132.17,45.48432908]
[1726531866316,0.2584707,132.18,132.17,30.0]
[1726531866935,0.2584707,132.18,132.16,15.48432908]
[1726531870057,0.2584707,132.18,132.17,30.0]
[1726531872851,0.2584707,132.18,132.16,15.48432908]
[1726531875740,0.2584707,132.18,132.17,30.0]
[1726531876240,0.2584707,132.18,132.17,45.48432908]
[1726531880750,0.2584707,132.18,132.17,15.48432908]
[1726531883739,0.2584707,132.18,132.17,45.48432908]
[1726531887154,0.2584707,132.18,132.17,15.48432908]
[1726531889249,0.2584707,132.18,132.14,3.032898]
[1726531889452,0.2584707,132.18,132.15,45.48432908]
[1726531889963,0.2584707,132.18,132.16,15.48432908]
[1726531890339,0.2584707,132.18,132.17,30.0]
[1726531890839,0.2584707,132.18,132.16,15.48432908]
[1726531895258,0.2584707,132.18,132.17,30.0]
[1726531900846,0.2584707,132.18,132.16,15.48432908]
[1726531903649,0.2584707,132.18,132.17,30.0]
[1726531904250,0.2584707,132.18,132.17,45.48432908]
[1726531912479,0.08065653,132.21,132.18,20.0]
[1726531912663,0.08065653,132.21,132.2,15.48432908]
[1726531914880,0.08065653,132.21,132.2,45.48432908]
[1726531916757,0.08065653,132.21,132.2,66.99672359]
[1726531917369,0.08065653,132.21,132.2,112.49620759]
[1726531918684,0.2584707,132.22,132.21,20.0]
[1726531918979,0.2584707,132.22,132.21,65.48432908]
[1726531920670,0.2584707,132.22,132.21,50.0]
[1726531921383,0.2584707,132.22,132.21,30.0]
[1726531923164,0.2584707,132.22,132.2,15.48432908]
[1726531924681,15.6442707,132.26,132.2,15.48432908]
[1726531924682,15.4027414,132.26,132.2,15.48432908]
[1726531926790,15.4027414,132.26,132.21,30.0]
[1726531927367,15.4027414,132.26,132.2,15.48432908]
[1726531929492,15.4027414,132.26,132.17,23.0686]
[1726531929493,15.4027414,132.26,132.19,15.48432908]
[1726531929695,15.4027414,132.26,132.2,30.0]
[1726531930576,7.5618,132.25,132.2,30.0]
[1726531931782,7.5618,132.25,132.19,15.48432908]
[1726531934993,7.562,132.24,132.18,15.48432908]
[1726531935291,23.776884,132.25,132.18,20.0]
[1726531936099,23.776884,132.25,132.18,15.48432908]
[1726531936294,31.338384,132.25,132.18,15.48432908]
[1726531936715,7.5615,132.25,132.19,15.48432908]
[1726531937277,22.9637414,132.26,132.19,15.48432908]
[1726531939098,22.9637414,132.26,132.16,20.0]
[1726531939306,22.9637414,132.26,132.19,15.48432908]
[1726531943688,7.5614,132.25,132.19,15.48432908]
[1726531945391,7.5627,132.23,132.17,30.0]
[1726531945696,15.7592,132.22,132.17,30.0]
[1726531947712,23.3224,132.22,132.17,30.0]
[1726531949201,23.3224,132.22,132.16,30.2415293]
[1726531950478,23.3224,132.22,132.16,45.72585838]
[1726531950680,15.7592,132.22,132.17,15.48432908]
[1726531950911,15.7592,132.22,132.18,15.48432908]
[1726531952623,15.7592,132.22,132.17,15.48432908]
[1726531954123,23.3224,132.22,132.16,45.72585838]
[1726531955716,15.7592,132.22,132.18,15.48432908]
[1726531957813,15.7592,132.22,132.16,30.2415293]
[1726531957997,15.7592,132.22,132.2,15.48432908]
[1726531959505,6.31,132.24,132.2,15.48432908]
[1726531964633,6.31,132.24,132.19,15.48432908]
[1726531964795,6.31,132.24,132.2,30.0]
[1726531966927,16.019,132.25,132.2,30.0]
[1726531967212,16.019,132.25,132.19,15.48432908]
[1726531969008,16.019,132.25,132.2,15.48432908]
[1726531974431,16.019,132.25,132.21,15.48432908]
[1726531974629,6.4538,132.27,132.21,30.0]
[1726531974814,6.4538,132.27,132.23,15.48432908]
[1726531975209,23.6405,132.29,132.23,15.48432908]
[1726531975715,23.6405,132.29,132.23,45.48432908]
[1726531978817,23.6405,132.29,132.23,30.0]
[1726531980437,7.5597,132.28,132.23,30.0]
[1726531985443,7.5608,132.26,132.19,20.0]
[1726531985612,7.5604,132.27,132.2,45.48432908]
[1726531988340,7.5604,132.27,132.2,30.0]
[1726531988341,16.0885,132.26,132.2,30.0]
[1726531988523,31.339784,132.23,132.16,15.72585838]
[1726531988725,31.339784,132.23,132.17,30.0]
[1726531989623,15.2886,132.22,132.17,30.0]
[1726531991022,15.2886,132.22,132.16,15.72585838]
[1726531992024,22.8518,132.22,132.16,15.72585838]
[1726531992713,15.2886,132.22,132.17,15.48432908]
[1726532001238,15.2886,132.22,132.16,0.2415293]
[1726532001924,7.5637,132.21,132.16,0.2415293]
[1726532002338,23.776884,132.21,132.16,0.2415293]
[1726532002531,31.340884,132.21,132.16,0.2415293]
[1726532003649,31.340884,132.21,132.16,30.2415293]
[1726532004230,31.340884,132.21,132.16,0.2415293]
[1726532015575,31.340884,132.21,132.16,15.72585838]
[1726532020674,15.2886,132.22,132.18,15.48432908]
[1726532020872,15.2886,132.22,132.19,15.48432908]
[1726532025173,15.2886,132.22,132.18,15.48432908]
[1726532027890,15.2886,132.22,132.19,15.48432908]
[1726532028077,15.2886,132.22,132.2,15.48432908]
[1726532029691,15.2886,132.22,132.19,15.48432908]
[1726532035791,15.2886,132.22,132.16,0.2415293]
[1726532035969,15.2886,132.22,132.19,15.48432908]
[1726532038678,15.2886,132.22,132.18,15.48432908]
[1726532041999,15.2886,132.22,132.16,0.2415293]
[1726532042000,15.2886,132.22,132.19,15.48432908]
[1726532042208,15.2886,132.22,132.19,45.48432908]
[1726532042736,15.2886,132.22,132.19,30.0]
[1726532042884,15.2886,132.22,132.18,15.48432908]
[1726532043502,15.2886,132.22,132.19,15.48432908]
[1726532043683,15.2886,132.22,132.2,30.0]
[1726532043877,15.2886,132.22,132.2,45.48432908]
[1726532044103,15.3759,132.26,132.21,15.48432908]
[1726532044294,15.3759,132.26,132.22,15.48432908]
[1726532044478,15.3759,132.26,132.2,30.0]
[1726532044685,7.5615,132.25,132.2,30.0]
[1726532044985,7.5615,132.25,132.2,45.48432908]
[1726532047291,7.5615,132.25,132.2,15.48432908]
[1726532048303,7.5615,132.25,132.19,15.48432908]
[1726532048895,22.9368,132.26,132.21,15.48432908]
[1726532049599,23.776884,132.25,132.2,15.48432908]
[1726532050810,15.3759,132.26,132.21,15.48432908]
[1726532054010,22.9367,132.26,132.21,15.48432908]
[1726532057509,22.9367,132.26,132.2,15.48432908]
[1726532064623,15.3759,132.26,132.2,15.48432908]
[1726532065134,15.3759,132.26,132.21,30.0]
[1726532067229,15.3759,132.26,132.21,31.51243342]
[1726532068508,15.3759,132.26,132.21,30.0]
[1726532071924,15.3759,132.26,132.2,15.48432908]
[1726532073035,15.3759,132.26,132.21,30.0]
[1726532073922,15.3759,132.26,132.21,45.48432908]
[1726532074316,15.3759,132.26,132.21,30.0]
[1726532074641,15.3759,132.26,132.21,45.48432908]
[1726532081056,15.3759,132.26,132.22,12.96477603]
[1726532081241,15.3759,132.26,132.21,15.48432908]
[1726532081436,15.3759,132.26,132.22,12.96463753]
[1726532081641,15.3759,132.26,132.21,15.48432908]
[1726532081842,15.3759,132.26,132.22,12.964628]
[1726532082039,15.3759,132.26,132.21,15.48432908]
[1726532082247,15.3759,132.26,132.22,12.96464511]
[1726532082437,15.3759,132.26,132.21,15.48432908]
[1726532082641,15.3759,132.26,132.22,12.96463215]
[1726532082851,15.3759,132.26,132.21,15.48432908]
[1726532083061,15.3759,132.26,132.22,12.96474084]
[1726532083360,15.3759,132.26,132.23,12.96431823]
[1726532083560,15.3759,132.26,132.21,15.48432908]
[1726532083856,15.3759,132.26,132.22,12.96444656]
[1726532084159,15.3759,132.26,132.21,15.48432908]
[1726532084358,15.3759,132.26,132.22,12.9648618]
[1726532084560,15.3759,132.26,132.23,12.9648618]
[1726532084764,15.3759,132.26,132.21,15.48432908]
[1726532084961,15.3759,132.26,132.22,12.96524804]
[1726532085164,15.3759,132.26,132.23,12.96524804]
[1726532085336,15.3759,132.26,132.21,15.48432908]
[1726532085842,15.3759,132.26,132.22,12.96511405]
[1726532086041,15.3759,132.26,132.21,15.48432908]
[1726532086456,15.3759,132.26,132.17,43.776884]
[1726532086666,23.776884,132.25,132.18,45.48432908]
[1726532086876,23.776884,132.23,132.18,30.0]
[1726532087535,23.776884,132.23,132.16,15.72585838]
[1726532087769,23.776884,132.23,132.17,15.48432908]
[1726532093546,23.776884,132.23,132.18,15.48432908]
[1726532095685,21.2161,132.24,132.19,15.48432908]
[1726532098876,21.2161,132.24,132.16,0.2415293]
[1726532098877,21.2161,132.24,132.2,15.48432908]
[1726532099167,21.2161,132.24,132.21,15.48432908]
[1726532100450,21.2161,132.24,132.16,0.2415293]
[1726532100778,21.3337,132.27,132.23,15.48432908]
[1726532100954,21.3337,132.27,132.17,30.0]
[1726532100955,21.3337,132.27,132.25,15.48432908]
[1726532101153,15.1792,132.27,132.25,15.48432908]
[1726532101880,15.1792,132.27,132.23,15.48432908]
[1726532102378,15.1792,132.27,132.24,15.48432908]
[1726532102589,15.1792,132.27,132.19,20.0]
[1726532102759,15.1792,132.27,132.23,15.48432908]
[1726532103650,15.1792,132.27,132.19,20.0]
[1726532103856,29.965084,132.26,132.2,30.0]
[1726532104056,29.965084,132.26,132.16,21.8213293]
[1726532104057,37.525984,132.26,132.18,15.48432908]
[1726532104353,29.965084,132.26,132.19,15.48432908]
[1726532104759,29.965084,132.26,132.2,30.0]
[1726532104981,29.965084,132.26,132.19,15.48432908]
[1726532105372,29.965084,132.26,132.16,0.2415293]
[1726532105586,29.965084,132.26,132.19,15.48432908]
[1726532106357,23.776884,132.24,132.18,15.48432908]
[1726532107967,23.776884,132.24,132.19,15.48432908]
[1726532110966,16.5532,132.25,132.19,15.48432908]
[1726532111168,16.5532,132.25,132.21,15.48432908]
[1726532114674,16.5532,132.25,132.2,15.48432908]
[1726532119208,16.5532,132.25,132.19,15.48432908]
[1726532121214,16.5532,132.25,132.2,15.48432908]
[1726532121510,16.5532,132.25,132.21,15.48432908]
[1726532122600,16.5532,132.25,132.22,30.0]
[1726532123409,16.5532,132.25,132.22,45.48432908]
[1726532124104,16.5532,132.25,132.22,30.0]
[1726532126287,16.5532,132.25,132.18,15.48432908]
[1726532126488,16.5532,132.25,132.19,30.0]
[1726532126901,16.5532,132.25,132.19,45.48432908]
[1726532128383,23.776884,132.24,132.19,30.0]
[1726532132597,16.5532,132.25,132.2,15.48432908]
[1726532132795,16.5532,132.25,132.21,45.48432908]
[1726532133308,16.5532,132.25,132.23,15.48432908]
[1726532136398,16.5532,132.25,132.23,45.48432908]
[1726532140094,15.4921,132.28,132.23,45.48432908]
[1726532142515,15.4921,132.28,132.23,30.0]
[1726532142702,23.776884,132.27,132.23,30.0]
[1726532143019,31.337684,132.27,132.19,15.48432908]
[1726532143212,31.337684,132.27,132.2,30.0]
[1726532144312,31.337684,132.27,132.2,45.48432908]
[1726532145937,23.776884,132.27,132.21,15.48432908]
[1726532147140,23.776884,132.27,132.2,45.48432908]
[1726532149431,23.776884,132.27,132.21,15.48432908]
[1726532150518,31.337184,132.27,132.21,15.48432908]
[1726532150826,31.337184,132.27,132.22,30.0]
[1726532152751,15.4921,132.28,132.22,45.48432908]
[1726532155225,15.4921,132.28,132.23,15.48432908]
[1726532156043,15.4921,132.28,132.23,45.48432908]
[1726532157639,15.4921,132.28,132.23,30.0]
[1726532157640,23.776884,132.27,132.23,30.0]
[1726532157823,31.337184,132.27,132.19,15.48432908]
[1726532158023,31.337184,132.27,132.21,30.0]
[1726532158527,7.5614,132.25,132.21,30.0]
[1726532158843,23.776884,132.25,132.21,30.0]
[1726532159040,31.338384,132.25,132.21,30.0]
[1726532159347,23.776884,132.25,132.18,30.0]
[1726532159643,23.776884,132.25,132.18,45.48432908]
[1726532160439,23.776884,132.25,132.18,30.0]
[1726532160637,23.776884,132.25,132.19,15.48432908]
[1726532161849,15.4921,132.28,132.2,15.48432908]
[1726532161850,7.5603,132.27,132.2,15.48432908]
[1726532162022,15.4921,132.28,132.18,30.0]
[1726532162023,23.0519,132.28,132.22,15.48432908]
[1726532162246,15.4921,132.28,132.22,15.48432908]
[1726532163343,15.4921,132.28,132.23,30.0]
[1726532166845,15.4921,132.28,132.23,45.48432908]
[1726532168642,15.4921,132.28,132.24,15.48432908]
[1726532168950,15.4921,132.28,132.24,45.48432908]
[1726532172961,15.4921,132.28,132.24,30.0]
[1726532173451,15.4921,132.28,132.22,15.48432908]
[1726532174556,23.0518,132.28,132.21,20.0]
[1726532174757,31.337184,132.27,132.2,30.0]
[1726532176465,31.337184,132.27,132.19,15.48432908]
[1726532176649,31.337184,132.27,132.2,30.0]
[1726532176859,7.5611,132.26,132.2,30.0]
[1726532177034,23.776884,132.25,132.2,30.0]
[1726532177363,40.238684,132.25,132.2,30.0]
[1726532177755,6.0594,132.24,132.2,30.0]
[1726532178659,23.776884,132.23,132.2,30.0]
[1726532178953,23.776884,132.23,132.17,15.48432908]
[1726532179160,23.776884,132.23,132.18,30.0]
[1726532180344,23.776884,132.23,132.18,45.48432908]
[1726532180671,6.0594,132.24,132.2,15.48432908]
[1726532180836,6.0594,132.24,132.19,15.48432908]
[1726532183248,23.776884,132.23,132.18,30.0]
[1726532183452,23.776884,132.23,132.17,30.0]
[1726532184138,23.776884,132.23,132.17,45.48432908]
[1726532184941,23.776884,132.23,132.18,15.48432908]
[1726532185837,23.776884,132.23,132.17,45.48432908]
[1726532187257,23.776884,132.23,132.19,15.48432908]
[1726532191868,6.0594,132.24,132.19,15.48432908]
[1726532197252,23.776884,132.23,132.17,30.0]
[1726532197455,23.776884,132.23,132.17,45.48432908]
[1726532199971,31.339384,132.23,132.17,45.48432908]
[1726532200174,15.1133,132.22,132.17,30.0]
[1726532200353,23.776884,132.21,132.17,30.0]
[1726532201352,23.776884,132.21,132.16,15.72585838]
[1726532203481,15.1133,132.22,132.17,15.48432908]
[1726532203652,15.1133,132.22,132.18,15.48432908]
[1726532204201,15.1133,132.22,132.19,15.48432908]
[1726532206000,15.1133,132.22,132.18,15.48432908]
[1726532207807,15.1133,132.22,132.17,15.48432908]
[1726532208496,15.1133,132.22,132.18,15.48432908]
[1726532212607,15.1133,132.22,132.19,15.48432908]
[1726532213099,15.1133,132.22,132.16,0.2415293]
[1726532213295,15.1133,132.22,132.17,15.48432908]
[1726532215316,23.776884,132.21,132.17,15.48432908]
[1726532215608,23.776884,132.21,132.18,15.48432908]
[1726532215791,15.1133,132.22,132.18,15.48432908]
[1726532220903,23.776884,132.21,132.16,0.2415293]
[1726532221103,23.776884,132.21,132.16,30.2415293]
[1726532221715,6.2811,132.2,132.16,0.2415293]
[1726532221902,23.776884,132.19,132.16,0.2415293]
[1726532222117,6.2811,132.2,132.16,15.72585838]
[1726532223408,23.776884,132.19,132.16,0.2415293]
[1726532224413,23.776884,132.17,132.16,0.2415293]
[1726532225594,31.342884,132.17,132.16,0.2415293]
[1726532226919,23.776884,132.17,132.16,0.2415293]
[1726532227100,37.837884,132.17,132.16,0.2415293]
[1726532228918,54.160984,132.17,132.16,0.2415293]
[1726532229104,7.5676,132.15,132.12,0.2584707]
[1726532229305,40.099984,132.13,132.12,0.2584707]
[1726532229709,47.668284,132.13,132.12,0.2584707]
[1726532230095,40.099984,132.13,132.12,0.2584707]
[1726532232316,54.124084,132.13,132.12,0.2584707]
[1726532232521,46.555784,132.13,132.12,0.2584707]
[1726532235347,54.124084,132.13,132.12,0.2584707]
[1726532249737,76.874084,132.13,132.12,0.2584707]
[1726532251820,96.874084,132.13,132.12,0.2584707]
[1726532254225,74.124084,132.13,132.12,0.2584707]
[1726532255347,96.874084,132.13,132.12,0.2584707]
[1726532257649,105.45378476,132.13,132.12,0.2584707]
[1726532257851,114.74964443,132.13,132.12,0.2584707]
[1726532259251,114.74964443,132.13,132.08,0.2584707]
[1726532259252,7.5705,132.09,132.08,0.2584707]
[1726532259431,31.347384,132.09,132.08,0.2584707]
[1726532259755,31.347384,132.09,132.04,0.2584707]
[1726532259756,7.5724,132.06,132.04,0.2584707]
[1726532259928,23.776884,132.05,132.04,0.2584707]
[1726532262754,31.349684,132.05,132.04,0.2584707]
[1726532264941,34.41403589,132.05,132.04,0.2584707]
[1726532265946,34.41403589,132.05,132.0,0.2584707]
[1726532265947,7.575,132.02,132.0,0.2584707]
[1726532266275,22.3361,132.04,132.0,0.2584707]
[1726532266276,23.776884,132.01,132.0,0.2584707]
[1726532275676,3.13018063,132.06,132.0,0.2584707]
[1726532275973,23.776884,132.06,132.0,0.2584707]
[1726532276352,23.776884,132.04,132.0,0.2584707]
[1726532277375,31.350784,132.04,132.0,0.2584707]
[1726532278056,23.776884,132.02,132.0,0.2584707]
[1726532279869,23.776884,132.03,132.0,0.2584707]
[1726532280266,23.776884,132.04,132.0,0.2584707]
[1726532280589,7.573,132.05,132.0,0.2584707]
[1726532282083,23.776884,132.04,132.0,0.2584707]
[1726532283584,23.776884,132.05,132.0,0.2584707]
[1726532286484,31.350084,132.05,132.0,0.2584707]
[1726532287167,7.5736,132.04,132.0,0.2584707]
[1726532287375,23.776884,132.03,132.0,0.2584707]
[1726532287620,23.776884,132.02,132.0,0.2584707]
[1726532289274,31.351484,132.02,132.0,0.2584707]
[1726532292661,23.776884,132.02,132.0,0.2584707]
[1726532295579,31.351684,132.02,132.0,0.2584707]
[1726532295782,23.776884,132.02,132.0,0.2584707]
[1726532297035,23.776884,132.03,132.0,0.2584707]
[1726532299903,31.351084,132.03,132.0,0.2584707]
[1726532303700,20.0,132.06,132.0,15.74279978]
[1726532303903,7.5725,132.06,132.01,15.48432908]
[1726532304704,3.07625343,132.07,132.02,15.48432908]
[1726532304705,10.64815343,132.07,132.02,15.48432908]
[1726532304908,7.5719,132.07,132.02,15.48432908]
[1726532306007,23.776884,132.06,132.02,15.48432908]
[1726532306596,23.776884,132.07,132.02,15.48432908]
[1726532308603,0.9,132.09,132.06,15.48432908]
[1726532309212,24.03142371,132.11,132.06,15.48432908]
[1726532309412,7.64612371,132.11,132.06,15.48432908]
[1726532309607,0.07662371,132.11,132.07,15.48432908]
[1726532311389,23.85350771,132.11,132.07,15.48432908]
[1726532311799,23.85350771,132.11,132.09,15.48432908]
[1726532311998,0.07662371,132.11,132.08,15.48432908]
[1726532313307,0.07662371,132.11,132.09,15.48432908]
[1726532313493,0.07662371,132.11,132.05,16.1499]
[1726532313494,0.07662371,132.11,132.1,15.48432908]
[1726532314211,0.07662371,132.11,132.09,15.48432908]
[1726532314814,23.776884,132.13,132.09,15.48432908]
[1726532315412,31.345184,132.13,132.09,15.48432908]
[1726532317989,31.345184,132.13,132.08,15.48432908]
[1726532320706,24.0353547,132.14,132.09,15.48432908]
[1726532320908,0.2584707,132.14,132.1,15.48432908]
[1726532322425,23.776884,132.13,132.1,15.48432908]
[1726532324525,23.776884,132.13,132.1,30.0]
[1726532325710,31.345184,132.13,132.1,30.0]
[1726532326023,23.776884,132.13,132.1,30.0]
[1726532327599,24.0353547,132.14,132.1,45.48432908]
[1726532328017,24.0353547,132.14,132.11,15.48432908]
[1726532328323,0.2584707,132.14,132.11,45.48432908]
[1726532328530,0.2584707,132.14,132.11,30.0]
[1726532331818,0.2584707,132.14,132.11,45.48432908]
[1726532333332,0.2584707,132.14,132.11,30.0]
[1726532338739,0.2584707,132.14,132.11,45.48432908]
[1726532339038,0.2584707,132.14,132.12,15.48432908]
[1726532339347,0.2584707,132.14,132.12,45.48432908]
[1726532340554,0.2584707,132.14,132.13,15.48432908]
[1726532341054,0.2584707,132.14,132.13,45.48432908]
[1726532345853,0.2584707,132.14,132.13,30.0]
[1726532348656,0.2584707,132.14,132.13,45.48432908]
[1726532349555,0.2584707,132.14,132.13,30.0]
[1726532357754,0.2584707,132.14,132.13,45.48432908]
[1726532365746,0.2584707,132.18,132.13,45.48432908]
[1726532366074,0.2584707,132.18,132.17,15.48432908]
[1726532366255,0.2584707,132.18,132.17,45.48432908]
[1726532371763,0.2584707,132.18,132.17,30.0]
[1726532387080,31.6007547,132.18,132.17,30.0]
[1726532388001,23.776884,132.17,132.13,15.48432908]
[1726532388201,23.776884,132.17,132.14,30.0]
[1726532392493,24.0353547,132.18,132.14,30.0]
[1726532393508,24.0353547,132.18,132.14,45.48432908]
[1726532393691,24.0353547,132.18,132.14,15.48432908]
[1726532395809,31.6007547,132.18,132.1,20.0]
[1726532395982,31.6007547,132.18,132.13,15.48432908]
[1726532396879,31.6007547,132.18,132.14,30.0]
[1726532400304,15.659,132.17,132.14,30.0]